[Event "Early-Titled-Tuesday-Blitz-January-16-2024"]
[Site "Chess.com"]
[Date "2024.01.16"]
[Round "7"]
[White "supereagles1201"]
[Black "doctorcristian"]
[Result "0-1"]
[WhiteElo "2376"]
[BlackElo "2559"]
[TimeControl "180+1"]
[EndTime "9:22:28 PST"]
[Termination "doctorcristian won by checkmate"]

1. c4 {[%clk 0:03:00.9]} 1... g6 {[%clk 0:02:46.9]} 2. g3 {[%clk 0:02:58.9]}
2... c5 {[%clk 0:02:44.6]} 3. Bg2 {[%clk 0:02:58.8]} 3... Bg7 {[%clk 0:02:45.5]}
4. Nf3 {[%clk 0:02:56.9]} 4... Nc6 {[%clk 0:02:46.4]} 5. Nc3 {[%clk 0:02:55.4]}
5... b6 {[%clk 0:02:46.7]} 6. O-O {[%clk 0:02:54.8]} 6... Bb7 {[%clk 0:02:47.1]}
7. e3 {[%clk 0:02:50.4]} 7... Bxc3 {[%clk 0:02:47.1]} 8. bxc3 {[%clk 0:02:48.3]}
8... d6 {[%clk 0:02:47]} 9. d3 {[%clk 0:02:43.5]} 9... Nf6 {[%clk 0:02:47.2]}
10. e4 {[%clk 0:02:43.1]} 10... Nd7 {[%clk 0:02:47.5]} 11. a4 {[%clk 0:02:41]}
11... Qc7 {[%clk 0:02:46.9]} 12. Be3 {[%clk 0:02:39.6]} 12... h6 {[%clk
0:02:45.1]} 13. Ne1 {[%clk 0:02:38.5]} 13... g5 {[%clk 0:02:44.9]} 14. f4 {[%clk
0:02:37]} 14... gxf4 {[%clk 0:02:45.1]} 15. gxf4 {[%clk 0:02:35.6]} 15... O-O-O
{[%clk 0:02:42]} 16. Kh1 {[%clk 0:02:34.9]} 16... Rdg8 {[%clk 0:02:41.6]} 17.
Nf3 {[%clk 0:02:21.3]} 17... e6 {[%clk 0:02:34.2]} 18. Qe2 {[%clk 0:02:05.7]}
18... f5 {[%clk 0:02:22.7]} 19. exf5 {[%clk 0:01:58]} 19... exf5 {[%clk
0:02:22.5]} 20. Nd2 {[%clk 0:01:58.4]} 20... Na5 {[%clk 0:02:16.7]} 21. Bxb7+
{[%clk 0:01:53.6]} 21... Qxb7+ {[%clk 0:02:16.3]} 22. Qf3 {[%clk 0:01:53.9]}
22... Nf6 {[%clk 0:02:04]} 23. Qxb7+ {[%clk 0:01:43.6]} 23... Kxb7 {[%clk
0:01:44.8]} 24. Rae1 {[%clk 0:01:43.2]} 24... Rg7 {[%clk 0:01:31.6]} 25. Bf2
{[%clk 0:01:40.2]} 25... Rhg8 {[%clk 0:01:28.8]} 26. Bh4 {[%clk 0:01:28.5]}
26... Nh5 {[%clk 0:01:11.4]} 27. Rf2 {[%clk 0:01:10]} 27... Rg4 {[%clk
0:01:06.7]} 28. Be7 {[%clk 0:00:53]} 28... R8g6 {[%clk 0:01:01.6]} 29. Ref1
{[%clk 0:00:50.4]} 29... Nc6 {[%clk 0:00:58.9]} 30. Re1 {[%clk 0:00:34.5]} 30...
Nxf4 {[%clk 0:00:49.1]} 31. Rf3 {[%clk 0:00:23.3]} 31... Ng2 {[%clk 0:00:41.1]}
32. Rg1 {[%clk 0:00:20.5]} 32... Nxe7 {[%clk 0:00:39.9]} 33. h3 {[%clk
0:00:18.8]} 33... R4g5 {[%clk 0:00:40.1]} 34. Nf1 {[%clk 0:00:16.9]} 34... Nh4
{[%clk 0:00:37.4]} 35. Rxg5 {[%clk 0:00:13.7]} 35... Rxg5 {[%clk 0:00:33.1]} 36.
Rf4 {[%clk 0:00:13.6]} 36... Neg6 {[%clk 0:00:33.1]} 37. Rf2 {[%clk 0:00:11.9]}
37... f4 {[%clk 0:00:30]} 38. Kh2 {[%clk 0:00:12.1]} 38... Kc6 {[%clk
0:00:27.8]} 39. Nd2 {[%clk 0:00:12]} 39... Ne5 {[%clk 0:00:26.6]} 40. d4 {[%clk
0:00:10.1]} 40... Nd3 {[%clk 0:00:24.9]} 41. Re2 {[%clk 0:00:05.4]} 41... f3
{[%clk 0:00:24.1]} 42. Re7 {[%clk 0:00:03.6]} 42... Rg2+ {[%clk 0:00:22.6]} 43.
Kh1 {[%clk 0:00:03.4]} 43... Nf2# {[%clk 0:00:23]} 0-1

[Event "Early-Titled-Tuesday-Blitz-January-16-2024"]
[Site "Chess.com"]
[Date "2024.01.16"]
[Round "7"]
[White "LyonBeast"]
[Black "artooon"]
[Result "1-0"]
[WhiteElo "3149"]
[BlackElo "2967"]
[TimeControl "180+1"]
[EndTime "9:22:34 PST"]
[Termination "LyonBeast won by checkmate"]

1. e4 {[%clk 0:03:00.9]} 1... e5 {[%clk 0:03:00.1]} 2. Nf3 {[%clk 0:02:58.5]}
2... Nc6 {[%clk 0:03:00.4]} 3. Bc4 {[%clk 0:02:59]} 3... Nf6 {[%clk 0:03:00.4]}
4. d3 {[%clk 0:02:58.2]} 4... Bc5 {[%clk 0:03:00.4]} 5. O-O {[%clk 0:02:57.2]}
5... O-O {[%clk 0:03:00.3]} 6. c3 {[%clk 0:02:56.5]} 6... d6 {[%clk 0:02:58.6]}
7. Re1 {[%clk 0:02:55.2]} 7... a6 {[%clk 0:02:58.1]} 8. a4 {[%clk 0:02:49.4]}
8... h6 {[%clk 0:02:55.5]} 9. Nbd2 {[%clk 0:02:45]} 9... Ng4 {[%clk 0:02:39.3]}
10. Re2 {[%clk 0:02:44.6]} 10... Kh8 {[%clk 0:02:37.4]} 11. h3 {[%clk
0:02:34.5]} 11... f5 {[%clk 0:02:37.5]} 12. b4 {[%clk 0:02:19.7]} 12... Ba7
{[%clk 0:02:32.1]} 13. exf5 {[%clk 0:01:55.3]} 13... Nxf2 {[%clk 0:02:31.9]} 14.
Rxf2 {[%clk 0:01:55.1]} 14... Bxf2+ {[%clk 0:02:30.2]} 15. Kxf2 {[%clk 0:01:56]}
15... Bxf5 {[%clk 0:02:27.6]} 16. Kg1 {[%clk 0:01:53.2]} 16... d5 {[%clk
0:02:25.4]} 17. Bb3 {[%clk 0:01:50.1]} 17... Bxd3 {[%clk 0:02:23.5]} 18. Ne1
{[%clk 0:01:38.9]} 18... Bh7 {[%clk 0:01:54.4]} 19. Ndf3 {[%clk 0:01:26.2]}
19... e4 {[%clk 0:01:52.1]} 20. Nd4 {[%clk 0:01:26.2]} 20... Ne5 {[%clk
0:01:52.1]} 21. Ne6 {[%clk 0:01:17.1]} 21... Qf6 {[%clk 0:01:47.5]} 22. Nxf8
{[%clk 0:01:15]} 22... Rxf8 {[%clk 0:01:48.4]} 23. Be3 {[%clk 0:01:07.3]} 23...
Qf1+ {[%clk 0:01:29.6]} 24. Kh2 {[%clk 0:01:07.5]} 24... c6 {[%clk 0:01:18.8]}
25. Nc2 {[%clk 0:01:01.8]} 25... Qf6 {[%clk 0:01:15.1]} 26. Nd4 {[%clk
0:01:01.4]} 26... Qh4 {[%clk 0:01:10.8]} 27. Qe1 {[%clk 0:00:56.7]} 27... Ng4+
{[%clk 0:00:51.2]} 28. Kg1 {[%clk 0:00:56.2]} 28... Qxe1+ {[%clk 0:00:51.6]} 29.
Rxe1 {[%clk 0:00:56.7]} 29... Nxe3 {[%clk 0:00:52.3]} 30. Rxe3 {[%clk
0:00:57.6]} 30... Bg8 {[%clk 0:00:48.2]} 31. Bd1 {[%clk 0:00:52]} 31... Rc8
{[%clk 0:00:36.6]} 32. Bg4 {[%clk 0:00:50.8]} 32... Rc7 {[%clk 0:00:36.8]} 33.
a5 {[%clk 0:00:47.8]} 33... c5 {[%clk 0:00:35.7]} 34. Ne6 {[%clk 0:00:47.4]}
34... Bxe6 {[%clk 0:00:33.8]} 35. Bxe6 {[%clk 0:00:48.3]} 35... cxb4 {[%clk
0:00:27.8]} 36. cxb4 {[%clk 0:00:49.2]} 36... Rc1+ {[%clk 0:00:27.4]} 37. Kf2
{[%clk 0:00:44.1]} 37... Rd1 {[%clk 0:00:27.4]} 38. Ke2 {[%clk 0:00:42]} 38...
Rd4 {[%clk 0:00:26.5]} 39. Rb3 {[%clk 0:00:41.4]} 39... g5 {[%clk 0:00:15.4]}
40. Bc8 {[%clk 0:00:38.1]} 40... Rc4 {[%clk 0:00:16]} 41. Bxb7 {[%clk
0:00:38.1]} 41... Rc2+ {[%clk 0:00:16.7]} 42. Ke3 {[%clk 0:00:38]} 42... Rxg2
{[%clk 0:00:15.2]} 43. Bxd5 {[%clk 0:00:38.3]} 43... Kg7 {[%clk 0:00:12]} 44.
Kxe4 {[%clk 0:00:36.4]} 44... Ra2 {[%clk 0:00:11]} 45. Ke5 {[%clk 0:00:34.6]}
45... Re2+ {[%clk 0:00:10.6]} 46. Be4 {[%clk 0:00:34.7]} 46... Ra2 {[%clk
0:00:11.2]} 47. Rc3 {[%clk 0:00:34.6]} 47... Ra4 {[%clk 0:00:11]} 48. Rc7+
{[%clk 0:00:34.4]} 48... Kg8 {[%clk 0:00:11.1]} 49. Kf6 {[%clk 0:00:35.1]} 49...
Rxb4 {[%clk 0:00:08.1]} 50. Rc8# {[%clk 0:00:36]} 1-0

[Event "Early-Titled-Tuesday-Blitz-January-16-2024"]
[Site "Chess.com"]
[Date "2024.01.16"]
[Round "7"]
[White "crazy_but_lazy"]
[Black "HamedWafa4"]
[Result "0-1"]
[WhiteElo "2593"]
[BlackElo "2841"]
[TimeControl "180+1"]
[EndTime "9:22:34 PST"]
[Termination "HamedWafa4 won by resignation"]

1. e3 {[%clk 0:02:56.3]} 1... Nf6 {[%clk 0:02:58]} 2. c4 {[%clk 0:02:56.4]} 2...
g6 {[%clk 0:02:57.8]} 3. g3 {[%clk 0:02:51.7]} 3... Bg7 {[%clk 0:02:58.7]} 4.
Bg2 {[%clk 0:02:51.6]} 4... O-O {[%clk 0:02:59.6]} 5. Ne2 {[%clk 0:02:52]} 5...
c6 {[%clk 0:02:57]} 6. Nbc3 {[%clk 0:02:51.6]} 6... d5 {[%clk 0:02:53.5]} 7.
cxd5 {[%clk 0:02:50.9]} 7... cxd5 {[%clk 0:02:54.2]} 8. d4 {[%clk 0:02:50.8]}
8... Nc6 {[%clk 0:02:54.6]} 9. O-O {[%clk 0:02:51.1]} 9... Bf5 {[%clk
0:02:38.1]} 10. b3 {[%clk 0:02:47.6]} 10... Rc8 {[%clk 0:02:32.9]} 11. Bb2
{[%clk 0:02:42]} 11... Qa5 {[%clk 0:02:13.2]} 12. Qd2 {[%clk 0:02:39.1]} 12...
h5 {[%clk 0:02:07]} 13. Rfc1 {[%clk 0:02:16.4]} 13... Rfd8 {[%clk 0:01:52.2]}
14. a3 {[%clk 0:02:12.8]} 14... Ne4 {[%clk 0:01:33.8]} 15. Nxe4 {[%clk
0:02:12.1]} 15... Bxe4 {[%clk 0:01:31.6]} 16. b4 {[%clk 0:02:12.6]} 16... Qb6
{[%clk 0:01:28.7]} 17. f3 {[%clk 0:02:01.3]} 17... Bf5 {[%clk 0:01:26]} 18. Rc5
{[%clk 0:02:01.9]} 18... Bf8 {[%clk 0:01:09.8]} 19. Rac1 {[%clk 0:02:01]} 19...
e5 {[%clk 0:01:07.8]} 20. dxe5 {[%clk 0:01:05.7]} 20... Bxc5 {[%clk 0:01:06.6]}
21. bxc5 {[%clk 0:01:05.4]} 21... Qa5 {[%clk 0:01:01.3]} 22. Qd1 {[%clk
0:00:56.2]} 22... Qb5 {[%clk 0:00:51.5]} 23. Qd2 {[%clk 0:00:46.8]} 23... Na5
{[%clk 0:00:50]} 24. Nd4 {[%clk 0:00:45.9]} 24... Nc4 {[%clk 0:00:41.5]} 25.
Nxb5 {[%clk 0:00:40.4]} 25... Nxd2 {[%clk 0:00:41.7]} 26. Nd6 {[%clk 0:00:40.3]}
26... Rc7 {[%clk 0:00:40.7]} 27. Nxf5 {[%clk 0:00:18.6]} 27... gxf5 {[%clk
0:00:39]} 28. Bd4 {[%clk 0:00:13.7]} 28... Nb3 {[%clk 0:00:34.3]} 29. Rc3 {[%clk
0:00:14.2]} 29... Nxd4 {[%clk 0:00:34.1]} 30. exd4 {[%clk 0:00:15.1]} 30... b6
{[%clk 0:00:34.3]} 31. Bh3 {[%clk 0:00:05]} 31... bxc5 {[%clk 0:00:33.6]} 32.
Bxf5 {[%clk 0:00:05.8]} 32... c4 {[%clk 0:00:32.6]} 33. h4 {[%clk 0:00:02.9]}
33... Rb7 {[%clk 0:00:32.4]} 34. g4 {[%clk 0:00:03.2]} 34... hxg4 {[%clk
0:00:30.2]} 35. fxg4 {[%clk 0:00:04.1]} 35... Rb3 {[%clk 0:00:30.2]} 36. Rc2
{[%clk 0:00:04.4]} 36... Rxa3 {[%clk 0:00:30]} 37. e6 {[%clk 0:00:04.9]} 37...
fxe6 {[%clk 0:00:29.7]} 38. Bxe6+ {[%clk 0:00:05.5]} 38... Kg7 {[%clk
0:00:30.4]} 39. h5 {[%clk 0:00:05.9]} 39... Rd3 {[%clk 0:00:25.7]} 40. Rf2
{[%clk 0:00:02.9]} 40... c3 {[%clk 0:00:22.8]} 41. Rf7+ {[%clk 0:00:02.9]} 41...
Kh8 {[%clk 0:00:20.6]} 42. h6 {[%clk 0:00:02.5]} 42... c2 {[%clk 0:00:20.5]} 43.
Rf1 {[%clk 0:00:02.9]} 43... Rd1 {[%clk 0:00:20.6]} 44. g5 {[%clk 0:00:03.2]}
44... Rxf1+ {[%clk 0:00:20.6]} 45. Kxf1 {[%clk 0:00:03.4]} 45... c1=Q+ {[%clk
0:00:21.5]} 46. Kg2 {[%clk 0:00:04.3]} 46... Qxg5+ {[%clk 0:00:22.2]} 0-1

[Event "Early-Titled-Tuesday-Blitz-January-16-2024"]
[Site "Chess.com"]
[Date "2024.01.16"]
[Round "7"]
[White "djano"]
[Black "Maxfan2008"]
[Result "1-0"]
[WhiteElo "2637"]
[BlackElo "2489"]
[TimeControl "180+1"]
[EndTime "9:22:34 PST"]
[Termination "djano won by checkmate"]

1. e4 {[%clk 0:03:00.9]} 1... c5 {[%clk 0:02:58.4]} 2. Nc3 {[%clk 0:03:00.6]}
2... d6 {[%clk 0:02:57.6]} 3. f4 {[%clk 0:03:00.6]} 3... Nc6 {[%clk 0:02:55.3]}
4. Nf3 {[%clk 0:03:01]} 4... g6 {[%clk 0:02:54.1]} 5. Bc4 {[%clk 0:03:01.2]}
5... Bg7 {[%clk 0:02:53.7]} 6. O-O {[%clk 0:03:01.8]} 6... e6 {[%clk 0:02:54.2]}
7. d4 {[%clk 0:03:02]} 7... cxd4 {[%clk 0:02:49.9]} 8. Nb5 {[%clk 0:03:02.2]}
8... Nge7 {[%clk 0:02:39.8]} 9. Bb3 {[%clk 0:03:00.7]} 9... O-O {[%clk
0:02:34.7]} 10. Nbxd4 {[%clk 0:03:00.9]} 10... e5 {[%clk 0:02:20.9]} 11. fxe5
{[%clk 0:02:42.4]} 11... Nxe5 {[%clk 0:02:09.5]} 12. c3 {[%clk 0:02:30.5]} 12...
Bg4 {[%clk 0:02:00.2]} 13. Bg5 {[%clk 0:02:25.3]} 13... h6 {[%clk 0:01:53.7]}
14. Bh4 {[%clk 0:02:23.1]} 14... g5 {[%clk 0:01:50.9]} 15. Bg3 {[%clk
0:02:20.4]} 15... N7g6 {[%clk 0:01:51.1]} 16. h3 {[%clk 0:02:09.5]} 16... Bxf3
{[%clk 0:01:50]} 17. gxf3 {[%clk 0:02:03.4]} 17... Nf4 {[%clk 0:01:38.5]} 18.
Bxf4 {[%clk 0:02:00.9]} 18... gxf4 {[%clk 0:01:39.4]} 19. Kh2 {[%clk 0:02:00.4]}
19... Kh7 {[%clk 0:01:34.2]} 20. Nf5 {[%clk 0:02:00.6]} 20... Bf6 {[%clk
0:01:27.7]} 21. Qd2 {[%clk 0:01:53.2]} 21... Rg8 {[%clk 0:01:14.5]} 22. Rad1
{[%clk 0:01:42.8]} 22... Bh4 {[%clk 0:00:55.3]} 23. Qxf4 {[%clk 0:01:22.1]}
23... Bg5 {[%clk 0:00:43.3]} 24. Qg3 {[%clk 0:01:22.4]} 24... Bd2 {[%clk
0:00:35.4]} 25. Qf2 {[%clk 0:01:13.2]} 25... Bf4+ {[%clk 0:00:34.8]} 26. Kh1
{[%clk 0:01:13.8]} 26... Qg5 {[%clk 0:00:23.6]} 27. Rxd6 {[%clk 0:01:01.3]}
27... Qh5 {[%clk 0:00:22.1]} 28. h4 {[%clk 0:00:50.5]} 28... Rg3 {[%clk
0:00:18.6]} 29. Nxg3 {[%clk 0:00:46.4]} 29... Qxh4+ {[%clk 0:00:17.8]} 30. Qh2
{[%clk 0:00:46.9]} 30... Qxh2+ {[%clk 0:00:14.8]} 31. Kxh2 {[%clk 0:00:47.8]}
31... Rg8 {[%clk 0:00:14.3]} 32. Rf6 {[%clk 0:00:39.3]} 32... Bxg3+ {[%clk
0:00:10.9]} 33. Kh3 {[%clk 0:00:36.3]} 33... Nd3 {[%clk 0:00:08.6]} 34. Rxf7+
{[%clk 0:00:32.8]} 34... Kh8 {[%clk 0:00:09]} 35. Rh7+ {[%clk 0:00:31.4]} 35...
Kxh7 {[%clk 0:00:08.6]} 36. Bxg8+ {[%clk 0:00:32.3]} 36... Kxg8 {[%clk
0:00:07.7]} 37. Kxg3 {[%clk 0:00:33.2]} 37... Nxb2 {[%clk 0:00:07.9]} 38. Rb1
{[%clk 0:00:33.5]} 38... Nc4 {[%clk 0:00:08.6]} 39. Rxb7 {[%clk 0:00:34.4]}
39... a5 {[%clk 0:00:07.5]} 40. f4 {[%clk 0:00:34.6]} 40... Nd2 {[%clk
0:00:05.9]} 41. e5 {[%clk 0:00:32.2]} 41... Ne4+ {[%clk 0:00:06.1]} 42. Kh4
{[%clk 0:00:32.6]} 42... Nxc3 {[%clk 0:00:07]} 43. f5 {[%clk 0:00:27.5]} 43...
Nd5 {[%clk 0:00:03.3]} 44. e6 {[%clk 0:00:25.9]} 44... Kf8 {[%clk 0:00:03.2]}
45. Kh5 {[%clk 0:00:25.9]} 45... Ne3 {[%clk 0:00:03.2]} 46. f6 {[%clk 0:00:24]}
46... Nd5 {[%clk 0:00:03.6]} 47. Rb8# {[%clk 0:00:24.5]} 1-0

[Event "Early-Titled-Tuesday-Blitz-January-16-2024"]
[Site "Chess.com"]
[Date "2024.01.16"]
[Round "7"]
[White "karinachess1"]
[Black "IM_ArthurDW08"]
[Result "0-1"]
[WhiteElo "2615"]
[BlackElo "2787"]
[TimeControl "180+1"]
[EndTime "9:22:35 PST"]
[Termination "IM_ArthurDW08 won by checkmate"]

1. d4 {[%clk 0:03:00.9]} 1... Nf6 {[%clk 0:02:57.6]} 2. c4 {[%clk 0:03:00.9]}
2... g6 {[%clk 0:02:56.5]} 3. g3 {[%clk 0:03:00.7]} 3... Bg7 {[%clk 0:02:57.2]}
4. Bg2 {[%clk 0:02:59.4]} 4... O-O {[%clk 0:02:58.1]} 5. Nc3 {[%clk 0:02:58.3]}
5... d6 {[%clk 0:02:58.6]} 6. Nf3 {[%clk 0:02:58.3]} 6... Bf5 {[%clk 0:02:59.2]}
7. Nh4 {[%clk 0:02:53.7]} 7... Bc8 {[%clk 0:02:59.2]} 8. Nf3 {[%clk 0:02:51.5]}
8... Nc6 {[%clk 0:02:46.7]} 9. O-O {[%clk 0:02:50.9]} 9... a6 {[%clk 0:02:47.3]}
10. Bf4 {[%clk 0:02:50.4]} 10... Rb8 {[%clk 0:02:44.2]} 11. Rc1 {[%clk
0:02:50.1]} 11... Bd7 {[%clk 0:02:37.6]} 12. Nd5 {[%clk 0:02:39.6]} 12... Ne4
{[%clk 0:02:23]} 13. c5 {[%clk 0:02:10.9]} 13... e6 {[%clk 0:02:20.5]} 14. cxd6
{[%clk 0:02:04.2]} 14... cxd6 {[%clk 0:02:21.4]} 15. Nc3 {[%clk 0:02:04]} 15...
Nxc3 {[%clk 0:02:11.9]} 16. Rxc3 {[%clk 0:02:02.7]} 16... e5 {[%clk 0:02:00.2]}
17. dxe5 {[%clk 0:02:01.1]} 17... dxe5 {[%clk 0:02:00.1]} 18. Nxe5 {[%clk
0:01:29.5]} 18... Bxe5 {[%clk 0:01:49.7]} 19. Bxc6 {[%clk 0:00:57.6]} 19... Bxc3
{[%clk 0:01:47.5]} 20. Bxd7 {[%clk 0:00:49.5]} 20... Bxb2 {[%clk 0:01:47.1]} 21.
Bxb8 {[%clk 0:00:45.3]} 21... Qxb8 {[%clk 0:01:48]} 22. Qb3 {[%clk 0:00:40.1]}
22... Be5 {[%clk 0:01:39.1]} 23. Rb1 {[%clk 0:00:39.7]} 23... b5 {[%clk
0:01:36.3]} 24. Bc6 {[%clk 0:00:33.9]} 24... Qb6 {[%clk 0:01:28.9]} 25. Bd5
{[%clk 0:00:32.5]} 25... Qf6 {[%clk 0:01:29.4]} 26. a4 {[%clk 0:00:27.7]} 26...
Rb8 {[%clk 0:01:08.6]} 27. axb5 {[%clk 0:00:20.5]} 27... Rxb5 {[%clk 0:01:07.2]}
28. Qa2 {[%clk 0:00:21.2]} 28... Kg7 {[%clk 0:00:48.2]} 29. Rxb5 {[%clk
0:00:20]} 29... axb5 {[%clk 0:00:48.5]} 30. Qb3 {[%clk 0:00:20.4]} 30... h5
{[%clk 0:00:07.6]} 31. Qxb5 {[%clk 0:00:18.3]} 31... h4 {[%clk 0:00:08.2]} 32.
Kg2 {[%clk 0:00:17.2]} 32... h3+ {[%clk 0:00:06.4]} 33. Kg1 {[%clk 0:00:14.3]}
33... Bd4 {[%clk 0:00:05.6]} 34. e3 {[%clk 0:00:13.6]} 34... Ba7 {[%clk
0:00:02.6]} 35. Qb1 {[%clk 0:00:13.7]} 35... Qc3 {[%clk 0:00:02.3]} 36. Be4
{[%clk 0:00:12]} 36... f5 {[%clk 0:00:02.3]} 37. Bd5 {[%clk 0:00:10.9]} 37...
Bxe3 {[%clk 0:00:02.1]} 38. fxe3 {[%clk 0:00:10.5]} 38... Qxe3+ {[%clk 0:00:03]}
39. Kh1 {[%clk 0:00:09.3]} 39... Qd2 {[%clk 0:00:03.9]} 40. Qb7+ {[%clk
0:00:09]} 40... Kh6 {[%clk 0:00:03.8]} 41. Qb1 {[%clk 0:00:08.3]} 41... Qxd5+
{[%clk 0:00:03.8]} 42. Kg1 {[%clk 0:00:07.7]} 42... Qg2# {[%clk 0:00:04.7]} 0-1

[Event "Early-Titled-Tuesday-Blitz-January-16-2024"]
[Site "Chess.com"]
[Date "2024.01.16"]
[Round "7"]
[White "KorolDimitriy75"]
[Black "MathiasWomacka"]
[Result "0-1"]
[WhiteElo "2348"]
[BlackElo "2576"]
[TimeControl "180+1"]
[EndTime "9:22:35 PST"]
[Termination "MathiasWomacka won on time"]

1. d4 {[%clk 0:03:00.9]} 1... Nf6 {[%clk 0:02:58.9]} 2. c4 {[%clk 0:03:00.9]}
2... e6 {[%clk 0:02:59.2]} 3. Nc3 {[%clk 0:03:01.2]} 3... Bb4 {[%clk 0:02:59.5]}
4. Qc2 {[%clk 0:03:01.4]} 4... c5 {[%clk 0:02:57.6]} 5. dxc5 {[%clk 0:03:01.2]}
5... O-O {[%clk 0:02:56.5]} 6. Nf3 {[%clk 0:03:00.8]} 6... Na6 {[%clk
0:02:55.7]} 7. Bd2 {[%clk 0:03:00.1]} 7... Nxc5 {[%clk 0:02:54.7]} 8. e3 {[%clk
0:03:00.2]} 8... b6 {[%clk 0:02:53.6]} 9. Be2 {[%clk 0:03:00]} 9... Ba6 {[%clk
0:02:53]} 10. O-O {[%clk 0:02:57.8]} 10... Rc8 {[%clk 0:02:47.4]} 11. Rfd1
{[%clk 0:02:55.7]} 11... Bxc3 {[%clk 0:02:28]} 12. Bxc3 {[%clk 0:02:55.7]} 12...
Nce4 {[%clk 0:02:28]} 13. Bxf6 {[%clk 0:02:05.2]} 13... Nxf6 {[%clk 0:02:28.9]}
14. Qa4 {[%clk 0:02:05.1]} 14... Bb7 {[%clk 0:02:20.6]} 15. Qxa7 {[%clk
0:01:53.9]} 15... Qc7 {[%clk 0:02:20.4]} 16. Qa3 {[%clk 0:01:34.2]} 16... Ng4
{[%clk 0:02:08.4]} 17. Qd6 {[%clk 0:01:10.1]} 17... Rfd8 {[%clk 0:02:03.4]} 18.
h3 {[%clk 0:00:31.9]} 18... Nf6 {[%clk 0:02:01.4]} 19. Qxc7 {[%clk 0:00:31.2]}
19... Rxc7 {[%clk 0:02:02]} 20. b3 {[%clk 0:00:31.2]} 20... d5 {[%clk
0:01:37.9]} 21. Nd4 {[%clk 0:00:15.8]} 21... Kf8 {[%clk 0:01:20.9]} 22. Nb5
{[%clk 0:00:14.4]} 22... Rcc8 {[%clk 0:01:17.3]} 23. Rac1 {[%clk 0:00:10.8]}
23... Ke7 {[%clk 0:01:12.3]} 24. Kf1 {[%clk 0:00:10.4]} 24... Ba6 {[%clk
0:01:02.2]} 25. Nc3 {[%clk 0:00:09.3]} 25... dxc4 {[%clk 0:00:58.3]} 26. Rxd8
{[%clk 0:00:08.8]} 26... Kxd8 {[%clk 0:00:57]} 27. Nd1 {[%clk 0:00:06.6]} 27...
cxb3 {[%clk 0:00:49.7]} 28. Rxc8+ {[%clk 0:00:04.6]} 28... Bxc8 {[%clk
0:00:46.6]} 29. axb3 {[%clk 0:00:05.5]} 29... e5 {[%clk 0:00:43.9]} 30. f3
{[%clk 0:00:05]} 30... Be6 {[%clk 0:00:43.6]} 31. b4 {[%clk 0:00:04.4]} 31...
Nd5 {[%clk 0:00:43.6]} 32. b5 {[%clk 0:00:03]} 32... Kc7 {[%clk 0:00:42.6]} 33.
Ke1 {[%clk 0:00:03.3]} 33... Kd7 {[%clk 0:00:42.3]} 34. Kd2 {[%clk 0:00:03.4]}
34... Kd6 {[%clk 0:00:42.7]} 35. Nc3 {[%clk 0:00:01.7]} 35... Nxc3 {[%clk
0:00:41.9]} 36. Kxc3 {[%clk 0:00:02.6]} 36... Kc5 {[%clk 0:00:41.2]} 37. Bd3
{[%clk 0:00:02.3]} 37... h6 {[%clk 0:00:40.5]} 38. f4 {[%clk 0:00:02.3]} 38...
exf4 {[%clk 0:00:39.8]} 39. exf4 {[%clk 0:00:03.2]} 39... Bd7 {[%clk 0:00:39.5]}
40. g3 {[%clk 0:00:03.2]} 40... Bxh3 {[%clk 0:00:38.8]} 41. Bc4 {[%clk
0:00:02.8]} 41... f6 {[%clk 0:00:37.2]} 42. Bd3 {[%clk 0:00:02.8]} 42... Bd7
{[%clk 0:00:36.6]} 43. Be2 {[%clk 0:00:02.4]} 43... Bxb5 {[%clk 0:00:36.4]} 44.
Bh5 {[%clk 0:00:02.4]} 44... Bc6 {[%clk 0:00:35.9]} 45. Bg6 {[%clk 0:00:02.4]}
45... b5 {[%clk 0:00:36]} 46. Bd3 {[%clk 0:00:02]} 46... Bd5 {[%clk 0:00:32.8]}
47. Bc2 {[%clk 0:00:01.6]} 47... b4+ {[%clk 0:00:32.7]} 48. Kd3 {[%clk
0:00:01.2]} 48... b3 {[%clk 0:00:27.5]} 0-1